bitfinex/quotes_SOLUSD_20250831
["timestamp","ask_amount","ask_price","bid_price","bid_amount"]
[1756667340943,37.76,205.79,205.77,4.0282883]
[1756667342204,37.76,205.79,205.77,8.88805075]
[1756667342515,0.06,205.8,205.78,4.6982883]
[1756667342705,0.06,205.8,205.79,4.0282883]
[1756667342904,0.06,205.8,205.79,4.6982883]
[1756667343990,0.06,205.8,205.79,9.55761091]
[1756667344819,0.06,205.8,205.79,23.15320492]
[1756667346918,0.06,205.8,205.79,19.12491662]
[1756667347117,0.06,205.8,205.79,23.15320492]
[1756667347627,0.06,205.8,205.79,27.18149322]
[1756667350903,0.06,205.8,205.79,23.15320492]
[1756667351302,0.06,205.8,205.79,27.18149322]
[1756667355604,0.06,205.8,205.79,19.12491662]
[1756667355810,0.06,205.8,205.79,27.18149322]
[1756667362839,0.71,205.8,205.77,4.0582883]
[1756667363041,0.06,205.83,205.8,13.59559401]
[1756667363245,0.06,205.83,205.82,43.62388231]
[1756667363464,1e-08,205.83,205.82,43.62388231]
[1756667363632,1e-08,205.83,205.82,49.15249663]
[1756667364355,1e-08,205.83,205.82,48.48249663]
[1756667365845,0.65000001,205.83,205.82,22.48249663]
[1756667366020,0.65000001,205.83,205.82,4.85861432]
[1756667366220,0.65000001,205.83,205.8,17.62388231]
[1756667366530,0.65000001,205.83,205.8,22.4829688]
[1756667366531,0.65,205.82,205.8,22.4829688]
[1756667367431,0.65,205.82,205.81,18.4544444]
[1756667367636,4.6782883,205.82,205.77,17.65388231]
[1756667367834,0.65,205.81,205.77,17.65388231]
[1756667368062,0.65,205.81,205.78,4.85955875]
[1756667368217,0.65,205.8,205.78,4.85955875]
[1756667368424,0.65,205.79,205.77,22.5136457]
[1756667368648,0.65,205.78,205.77,0.03]
[1756667370547,0.65,205.78,205.77,4.8897346]
[1756667371149,0.65,205.78,205.77,0.03]
[1756667373544,4.6782883,205.78,205.77,0.03]
[1756667373750,9.5690283,205.78,205.77,0.03]
[1756667374458,47.2890283,205.78,205.77,0.03]
[1756667376536,9.5690283,205.78,205.77,0.03]
[1756667377053,47.2890283,205.78,205.77,0.03]
[1756667378657,5.54074,205.78,205.77,0.03]
[1756667378854,43.26074,205.78,205.77,0.03]
[1756667379859,5.54074,205.78,205.77,0.03]
[1756667380060,43.26074,205.78,205.77,0.03]
[1756667381930,38.37,205.78,205.77,0.03]
[1756667384960,42.3982883,205.78,205.77,0.03]
[1756667386736,47.25784705,205.78,205.77,0.03]
[1756667386935,49.20635705,205.78,205.77,0.03]
[1756667387663,1.94851,205.78,205.77,0.03]
[1756667387857,39.66851,205.78,205.77,0.03]
[1756667388256,37.72,205.78,205.77,18.37388231]
[1756667388570,37.78,205.8,205.78,4.85955875]
[1756667388740,37.78,205.8,205.79,4.7482883]
[1756667388947,37.78,205.8,205.79,4.0282883]
[1756667389466,37.78,205.8,205.79,4.7482883]
[1756667390268,37.78,205.8,205.79,9.60761091]
[1756667391048,0.06,205.8,205.79,9.60761091]
[1756667391572,0.06,205.8,205.79,23.20320492]
[1756667391743,0.06,205.8,205.79,19.17491662]
[1756667392078,0.06,205.8,205.79,23.20320492]
[1756667395070,1e-08,205.83,205.79,35.35151144]
[1756667395271,1e-08,205.83,205.82,17.62388231]
[1756667395658,1e-08,205.83,205.82,18.34388231]
[1756667396267,1e-08,205.83,205.82,23.20249663]
[1756667397465,1e-08,205.83,205.82,22.48249663]
[1756667397779,1e-08,205.83,205.82,8.88690262]
[1756667398761,0.66000001,205.83,205.82,4.85861432]
[1756667398943,1e-08,205.83,205.82,4.85861432]
[1756667399462,0.66000001,205.83,205.82,4.85861432]
[1756667399773,4.68828831,205.83,205.77,13.62559401]
[1756667399984,4.0282883,205.81,205.77,0.03]
[1756667400280,37.72,205.8,205.77,0.03]
[1756667400464,38.38,205.8,205.77,8.9180288]
[1756667401175,38.38,205.8,205.78,4.0282883]
[1756667401775,38.38,205.8,205.77,4.8897405]
[1756667401982,38.38,205.8,205.78,4.0282883]
[1756667402681,38.38,205.8,205.79,4.85932261]
[1756667403265,37.72,205.8,205.79,4.85932261]
[1756667403487,37.72,205.8,205.79,8.88761091]
[1756667403680,0.68,205.8,205.77,4.88956454]
[1756667403866,0.68,205.8,205.78,4.0282883]
[1756667404069,0.68,205.8,205.77,18.48515855]
[1756667404375,38.4,205.79,205.77,8.91785284]
[1756667404554,0.68,205.78,205.77,0.03]
[1756667404884,4.7082883,205.78,205.77,0.03]
[1756667406987,0.68,205.78,205.77,0.03]
[1756667407785,4.7082883,205.78,205.77,0.03]
[1756667408190,0.68,205.78,205.77,0.03]
[1756667411188,181.0387593,205.79,205.77,0.03]
[1756667411189,134.4,205.79,205.77,0.03]
[1756667411388,37.72,205.78,205.77,4.7282883]
[1756667411565,37.72,205.78,205.77,0.7]
[1756667411766,37.72,205.78,205.77,0.03]
[1756667412166,37.72,205.78,205.77,4.88979491]
[1756667416260,134.4,205.79,205.77,4.88979491]
[1756667416466,37.72,205.78,205.77,4.88979491]
[1756667417789,37.72,205.78,205.77,0.03]
[1756667417790,38.4,205.78,205.77,0.03]
[1756667418086,0.68,205.78,205.77,0.03]
[1756667418300,38.4,205.78,205.77,0.03]
[1756667421198,37.72,205.78,205.77,0.03]
[1756667423398,38.4,205.78,205.77,0.03]
[1756667424911,42.4282883,205.78,205.77,0.03]
[1756667426383,50.56210155,205.78,205.77,0.03]
[1756667426590,52.51080155,205.78,205.77,0.03]
[1756667431086,66.10416462,205.78,205.77,0.03]
[1756667435116,66.10416462,205.78,205.74,0.03]
[1756667435117,4.86026731,205.75,205.74,0.03]
[1756667435309,49.88057917,205.75,205.74,0.03]
[1756667435517,50.54057917,205.75,205.74,0.03]
[1756667435705,52.48966017,205.75,205.74,0.03]
[1756667436343,7.46934831,205.75,205.74,0.03]
[1756667436491,43.6973693,205.75,205.74,0.03]
[1756667436916,49.21763661,205.75,205.74,0.03]
[1756667442201,11.49763661,205.75,205.74,0.03]
[1756667442403,49.21763661,205.75,205.74,0.03]
[1756667443711,10.83763661,205.75,205.74,0.03]
[1756667443921,48.55763661,205.75,205.74,0.03]
[1756667444132,51.82821061,205.75,205.74,0.03]
[1756667445004,9.2479433,205.75,205.74,0.73]
[1756667445225,46.9679433,205.75,205.74,0.73]
[1756667445533,51.82821061,205.75,205.74,0.03]
[1756667446045,46.9679433,205.75,205.74,0.73]
[1756667446316,46.9679433,205.75,205.74,0.03]
[1756667448721,43.6973693,205.75,205.74,0.03]
[1756667449518,49.21763661,205.75,205.74,0.03]
[1756667450624,48.55763661,205.75,205.74,0.03]
[1756667450833,43.6973693,205.75,205.74,0.03]
[1756667453547,52.48948643,205.75,205.74,0.03]
[1756667456320,56.4512475,205.75,205.74,0.03]
[1756667464636,18.7312475,205.75,205.74,0.03]
[1756667464936,56.4512475,205.75,205.74,0.03]
[1756667466540,18.7312475,205.75,205.74,0.03]
[1756667466718,56.4512475,205.75,205.74,0.03]
[1756667468126,55.00076737,205.75,205.74,0.03]
[1756667470064,26.0,205.72,205.71,0.03]
[1756667470218,13.59559401,205.71,205.64,0.68]
[1756667470544,2.57780817,205.65,205.64,0.68]
[1756667470724,40.27780817,205.65,205.62,0.68]
[1756667470927,3.27184982,205.64,205.63,0.68]
[1756667471149,5.84965782,205.64,205.6,0.03]
[1756667471327,40.97184982,205.63,205.6,0.03]
[1756667471525,3.27184982,205.62,205.6,0.03]
[1756667471741,37.7,205.61,205.6,0.03]
[1756667472134,45.00819003,205.61,205.6,0.03]
[1756667472326,41.73084813,205.61,205.6,0.71]
[1756667473132,41.73084813,205.61,205.6,0.03]
[1756667473438,49.86934711,205.61,205.6,0.03]
[1756667473937,53.90019511,205.61,205.6,0.03]
[1756667474251,49.86934698,205.61,205.6,0.71]
[1756667474447,50.6252728,205.61,205.6,0.03]
[1756667474752,53.89539731,205.61,205.6,0.03]
[1756667475328,50.6252728,205.61,205.6,0.03]
[1756667475745,41.730848,205.61,205.6,0.03]
[1756667475937,8.06169613,205.61,205.6,0.71]
[1756667476140,45.78169613,205.61,205.6,0.71]
[1756667476629,45.78169613,205.61,205.6,0.03]
[1756667477353,45.78169613,205.61,205.6,0.71]
[1756667478243,45.78169613,205.61,205.6,0.03]
[1756667478442,41.750848,205.61,205.6,0.03]
[1756667478643,45.78169613,205.61,205.6,0.03]
[1756667480047,51.3152728,205.61,205.6,0.03]
[1756667481029,13.5952728,205.61,205.6,0.03]
[1756667481231,51.3152728,205.61,205.6,0.03]
[1756667481429,45.78169613,205.61,205.6,0.71]
[1756667481654,8.06169613,205.61,205.6,0.71]
[1756667481845,45.78169613,205.61,205.6,0.03]
[1756667483253,51.3152728,205.61,205.6,0.03]
[1756667483639,46.61442467,205.61,205.6,0.03]
[1756667483840,50.6452728,205.61,205.6,0.03]
[1756667485543,46.61442467,205.61,205.6,0.03]
[1756667485849,50.6452728,205.61,205.6,0.03]
[1756667486636,46.61442467,205.61,205.6,0.03]
[1756667486837,50.6452728,205.61,205.6,0.03]
[1756667487247,51.3152728,205.61,205.6,0.03]
[1756667488463,77.3152728,205.61,205.6,0.03]
[1756667490443,34.89442467,205.61,205.6,0.03]
[1756667490761,76.6452728,205.61,205.6,0.03]
[1756667495262,38.9252728,205.61,205.6,0.03]
[1756667495563,76.6452728,205.61,205.6,0.03]
[1756667495863,38.9252728,205.61,205.6,0.03]
[1756667496162,75.1952035,205.61,205.6,0.03]
[1756667500944,70.31162683,205.61,205.6,0.03]
[1756667501455,72.59442467,205.61,205.6,0.03]
[1756667501653,70.31162683,205.61,205.6,0.73]
[1756667502156,70.31162683,205.61,205.6,0.03]
[1756667503058,75.1752035,205.61,205.6,0.03]
[1756667503364,49.8952035,205.61,205.6,0.03]
[1756667503547,44.31162683,205.61,205.6,0.03]
[1756667506271,6.61162683,205.61,205.6,0.03]
[1756667506580,6.61162683,205.61,205.6,0.73]
[1756667506581,37.7,205.61,205.6,0.73]
[1756667508160,4.53080983,205.62,205.6,0.73]
[1756667508476,4.53080983,205.62,205.61,0.7]
[1756667508678,42.23080983,205.62,205.61,0.7]
[1756667509081,42.23080983,205.62,205.6,0.03]
[1756667509476,2.58077883,205.61,205.6,0.03]
[1756667510278,5.84907996,205.61,205.6,0.03]
[1756667511585,11.43265663,205.61,205.6,0.03]
[1756667511881,23.70618295,205.61,205.6,0.03]
[1756667512182,13.38306763,205.61,205.6,0.03]
[1756667512763,23.70618295,205.61,205.6,0.03]
[1756667513291,27.78319717,205.61,205.6,0.03]
[1756667513958,22.94645616,205.61,205.6,0.03]
[1756667514296,26.0,205.58,205.57,0.03]
[1756667514464,71.0018777,205.58,205.57,0.03]
[1756667515669,75.8675697,205.58,205.57,0.03]
[1756667518183,75.88283343,205.58,205.57,0.03]
[1756667518376,80.74711983,205.58,205.57,0.03]
[1756667519987,81.46711983,205.58,205.57,0.03]
[1756667522993,80.74711983,205.58,205.57,0.03]
[1756667524598,81.40711983,205.58,205.57,0.03]
[1756667526354,80.74711983,205.58,205.57,0.03]
[1756667526556,81.40711983,205.58,205.57,0.03]
[1756667528990,85.51157591,205.58,205.57,0.03]
[1756667529297,81.40711983,205.58,205.57,0.03]
[1756667531367,85.51075602,205.58,205.57,0.03]
[1756667531583,85.49075602,205.58,205.57,0.03]
[1756667532196,43.77717945,205.58,205.57,0.03]
[1756667532497,81.38711983,205.58,205.57,0.03]
[1756667533889,34.14925686,205.58,205.57,0.03]
[1756667534071,75.86283343,205.58,205.57,0.72]
[1756667534460,75.86283343,205.58,205.57,0.03]
[1756667535579,80.72711983,205.58,205.57,0.03]
[1756667535781,81.38711983,205.58,205.57,0.03]
[1756667535984,79.93499013,205.58,205.57,0.03]
[1756667538300,79.27499013,205.58,205.57,0.03]
[1756667539401,39.01354326,205.58,205.57,0.72]
[1756667539606,79.27499013,205.58,205.57,0.72]
[1756667539972,79.27499013,205.58,205.57,0.03]
[1756667540872,79.93499013,205.58,205.57,0.03]
[1756667544602,79.9337048,205.58,205.57,0.03]
[1756667550886,79.2737048,205.58,205.57,0.03]
[1756667551308,79.9337048,205.58,205.57,0.03]
[1756667551489,84.03655422,205.58,205.57,0.03]
[1756667553642,87.96798577,205.58,205.57,0.03]
[1756667556609,85.4365389,205.58,205.57,0.03]
[1756667556922,88.01798577,205.58,205.57,0.03]
[1756667558013,83.91513635,205.58,205.57,0.03]
[1756667560822,83.91513635,205.58,205.55,0.03]
[1756667561006,6.68949852,205.56,205.55,0.03]
[1756667561326,52.49653773,205.56,205.55,0.03]
[1756667561532,54.44732873,205.56,205.55,0.03]
[1756667561704,55.15732873,205.56,205.55,0.03]
[1756667562505,51.04927708,205.56,205.55,0.03]
[1756667565322,55.15507457,205.56,205.55,0.03]
[1756667568045,55.15635476,205.56,205.55,0.03]
[1756667568740,51.05115631,205.56,205.55,0.03]
[1756667571421,64.64675032,205.56,205.55,0.03]
[1756667571615,64.64675032,205.56,205.54,0.03]
[1756667571947,19.46119964,205.55,205.54,0.03]
[1756667572335,22.12237164,205.55,205.54,0.03]
[1756667573324,26.98736799,205.55,205.54,0.03]
[1756667578520,64.62736799,205.55,205.54,0.03]
[1756667578952,10.10032711,205.55,205.54,0.74]
[1756667579145,50.32177398,205.55,205.54,0.74]
[1756667579520,50.32177398,205.55,205.54,0.03]
[1756667580224,50.32177398,205.55,205.54,0.74]
[1756667580928,50.32177398,205.55,205.54,0.03]
[1756667583745,51.01177398,205.55,205.54,0.03]
[1756667584044,13.59559401,205.54,205.52,0.03]
[1756667584241,43.50560563,205.53,205.52,0.03]
[1756667584429,178.59560563,205.53,205.52,0.03]
[1756667584632,180.54687263,205.53,205.52,0.03]
[1756667586158,182.83089552,205.53,205.52,0.03]
[1756667586450,184.72234239,205.53,205.52,0.03]
[1756667587241,209.33372388,205.53,205.52,0.03]
[1756667587448,213.43341502,205.53,205.52,0.03]
[1756667587846,203.10762754,205.53,205.52,0.03]
[1756667589163,203.10762754,205.53,205.5,0.03]
[1756667589164,26.0,205.51,205.5,0.03]
[1756667589363,67.42698712,205.51,205.5,0.03]
[1756667589660,68.11698712,205.51,205.5,0.03]
[1756667589845,82.75363212,205.51,205.5,0.03]
[1756667590365,26.0,205.48,205.44,0.72]
[1756667590571,33.44881119,205.45,205.44,0.72]
[1756667590736,71.08881119,205.45,205.38,7.45040049]
[1756667590936,2.58144687,205.43,205.38,7.45040049]
[1756667591240,37.64,205.42,205.39,0.72]
[1756667591671,37.64,205.42,205.39,5.58862634]
[1756667591869,37.64,205.42,205.4,0.72]
[1756667592236,51.235594,205.42,205.4,0.72]
[1756667592546,53.81704087,205.42,205.4,0.72]
[1756667592939,40.22144687,205.42,205.4,0.72]
[1756667593252,10.03195287,205.41,205.4,0.72]
[1756667596962,7.450506,205.41,205.4,0.72]
[1756667597159,144.43195287,205.41,205.4,0.72]
[1756667598362,141.850506,205.41,205.4,0.72]
[1756667598551,144.43195287,205.41,205.4,0.72]
[1756667598753,141.850506,205.41,205.4,0.72]
[1756667599466,141.850506,205.41,205.4,0.75]
[1756667599873,144.43195287,205.41,205.4,0.75]
[1756667600177,144.43195287,205.41,205.4,0.03]
[1756667600768,182.05195287,205.41,205.4,0.03]
[1756667600964,186.92026502,205.41,205.4,0.03]
[1756667601267,52.52026502,205.41,205.4,0.03]
[1756667601444,53.21026502,205.41,205.4,0.03]
[1756667601646,56.48575378,205.41,205.4,0.03]
[1756667602757,70.08134779,205.41,205.4,0.03]
[1756667602954,26.0,205.38,205.37,0.03]
[1756667603142,69.47693563,205.38,205.37,0.03]
[1756667603349,70.16693563,205.38,205.37,0.03]
[1756667603555,34.14639776,205.38,205.37,0.03]
[1756667603744,74.34784463,205.38,205.37,0.75]
[1756667604454,74.34784463,205.38,205.37,0.03]
[1756667605670,79.2168679,205.38,205.37,0.03]
[1756667605976,79.9068679,205.38,205.37,0.03]
[1756667606278,77.32542103,205.38,205.37,0.03]
[1756667606654,79.9068679,205.38,205.37,0.03]
[1756667606978,79.2168679,205.38,205.37,0.03]
[1756667607673,79.9068679,205.38,205.37,0.03]
[1756667607973,79.2168679,205.38,205.37,0.03]
[1756667608945,41.5968679,205.38,205.37,0.03]
[1756667609162,79.2168679,205.38,205.37,0.03]
[1756667609568,33.45235587,205.38,205.37,0.03]
[1756667609776,71.07235587,205.38,205.37,0.75]
[1756667610066,71.07235587,205.38,205.37,0.03]
[1756667610275,71.07235587,205.38,205.37,0.75]
[1756667610460,71.07235587,205.38,205.37,0.03]
[1756667611474,33.45235587,205.38,205.37,0.03]
[1756667611771,71.07235587,205.38,205.37,0.03]
[1756667614069,71.07235587,205.38,205.37,0.75]
[1756667614572,71.07235587,205.38,205.37,0.03]
[1756667615359,42.490909,205.38,205.37,5.61926035]
[1756667615669,26.0,205.41,205.37,5.61926035]
[1756667615852,49.796383,205.4,205.38,0.72]
[1756667616054,37.62,205.39,205.38,0.72]
[1756667618068,7.54070687,205.4,205.38,0.72]
[1756667618272,37.62,205.39,205.38,4.86901471]
[1756667618772,37.62,205.39,205.38,0.72]
[1756667620281,40.91144687,205.39,205.37,0.03]
[1756667620474,2.58144687,205.38,205.37,0.03]
[1756667622266,40.20144687,205.38,205.37,0.03]
[1756667623780,45.10141487,205.38,205.37,0.03]
[1756667627182,7.48141487,205.38,205.37,0.03]
[1756667627382,45.10141487,205.38,205.37,0.03]
[1756667627772,7.48141487,205.38,205.37,0.03]
[1756667627977,45.10141487,205.38,205.37,0.03]
[1756667631984,7.48141487,205.38,205.37,0.03]
[1756667632202,45.10141487,205.38,205.37,0.03]
[1756667633189,7.48141487,205.38,205.37,0.03]
[1756667633393,37.62,205.38,205.37,0.75]
[1756667633567,37.62,205.38,205.37,3.33144687]
[1756667633768,37.6,205.38,205.37,3.33144687]
[1756667634375,4.959968,205.4,205.38,4.86902327]
[1756667634592,4.959968,205.4,205.39,0.72]
[1756667634778,42.559968,205.4,205.39,0.72]
[1756667636262,37.66,205.4,205.39,8.17023308]
[1756667637775,37.66,205.4,205.39,5.58878621]
[1756667640504,40.93964841,205.4,205.39,5.58878621]
[1756667640793,0.06,205.4,205.39,8.17023308]
[1756667640996,37.66,205.4,205.39,8.17023308]
[1756667641496,37.66,205.4,205.39,20.34413308]
[1756667642796,0.06,205.4,205.39,20.34413308]
[1756667643301,0.06,205.4,205.39,33.93972709]
[1756667644398,0.06,205.4,205.39,31.35828022]
[1756667644601,0.06,205.4,205.39,17.04268621]
[1756667644798,0.06,205.4,205.39,17.70268621]
[1756667645098,0.06,205.4,205.39,5.52878621]
[1756667645790,0.06,205.4,205.39,8.11023308]
[1756667648297,0.06,205.4,205.39,5.52878621]
[1756667648479,0.06,205.4,205.39,21.70582709]
[1756667648998,0.06,205.4,205.39,19.12438022]
[1756667649199,0.06,205.4,205.39,21.70582709]
[1756667649701,0.06,205.4,205.39,8.11023308]
[1756667654596,0.06,205.4,205.39,8.14023308]
[1756667656011,0.06,205.4,205.39,21.73582709]
[1756667656388,0.06,205.4,205.39,36.37033109]
[1756667656902,0.06,205.43,205.39,48.54229661]
[1756667657096,0.06,205.43,205.42,2.58144687]
[1756667657490,0.06,205.43,205.42,8.10952203]
[1756667658111,0.06,205.43,205.42,24.19715724]
[1756667660004,0.06,205.43,205.42,9.56408224]
[1756667660785,0.78,205.43,205.42,4.86807516]
[1756667661103,0.78,205.43,205.39,25.79755953]
[1756667661104,0.78,205.43,205.4,4.86854917]
[1756667661298,0.06,205.43,205.4,4.86854917]
[1756667661506,0.72,205.42,205.4,4.86854917]
[1756667661809,0.72,205.41,205.39,4.89871994]
[1756667662012,0.72,205.4,205.39,4.89871994]
[1756667663794,0.06,205.43,205.39,4.72600708]
[1756667663995,0.78,205.43,205.4,4.03600708]
[1756667664219,0.72,205.42,205.39,4.06600708]
[1756667664718,0.72,205.42,205.39,4.72600708]
[1756667665712,0.72,205.42,205.4,4.86854917]
[1756667665917,0.72,205.41,205.4,4.86854917]
[1756667666989,0.72,205.41,205.39,0.03]
[1756667667197,4.75600708,205.41,205.39,0.03]
[1756667668522,0.72,205.41,205.39,0.03]
[1756667668695,3.27813789,205.41,205.39,0.03]
[1756667668895,0.72,205.4,205.39,0.03]
[1756667669129,38.3,205.4,205.39,0.03]
[1756667671702,0.72,205.4,205.39,0.03]
[1756667672025,38.3,205.4,205.39,0.03]
[1756667673313,41.58008294,205.4,205.39,0.03]
[1756667681027,45.61609002,205.4,205.39,0.03]
[1756667682033,44.16532777,205.4,205.39,0.03]
[1756667682498,41.58008294,205.4,205.39,0.03]
[1756667682704,4.00008294,205.4,205.39,0.03]
[1756667682915,41.56008294,205.4,205.39,0.03]
[1756667683432,44.14532777,205.4,205.39,0.03]
[1756667683817,49.01501977,205.4,205.39,0.03]
[1756667684021,50.47042242,205.4,205.39,0.03]
[1756667684332,55.33897159,205.4,205.39,0.03]
[1756667687242,50.47042242,205.4,205.39,0.03]
[1756667687938,55.33897159,205.4,205.39,0.03]
[1756667688638,59.37961907,205.4,205.39,0.03]
[1756667689841,55.33897159,205.4,205.39,0.03]
[1756667690348,55.39897159,205.4,205.39,0.03]
[1756667692920,59.43961907,205.4,205.39,0.03]
[1756667694145,59.43861783,205.4,205.39,0.03]
[1756667695444,21.87861783,205.4,205.39,0.03]
[1756667695657,59.43861783,205.4,205.39,0.03]
[1756667700644,21.87861783,205.4,205.39,0.03]
[1756667700849,59.43861783,205.4,205.39,0.03]
[1756667702747,8.2087737,205.4,205.39,0.73]
[1756667702953,49.80942118,205.4,205.39,0.73]
[1756667703944,59.43861783,205.4,205.39,0.03]
[1756667704131,63.53746996,205.4,205.39,0.03]
[1756667708167,63.53746996,205.4,205.37,0.03]
[1756667708168,77.13306397,205.4,205.37,0.03]
[1756667708462,17.63624149,205.38,205.37,0.03]
[1756667708660,58.47532319,205.38,205.37,0.03]
[1756667708853,59.19532319,205.38,205.37,0.03]
[1756667709265,65.24696632,205.38,205.37,0.03]
[1756667709565,61.14811419,205.38,205.37,0.03]
[1756667710252,70.11598959,205.38,205.37,0.03]
[1756667710471,66.01713746,205.38,205.37,0.03]
[1756667711137,70.11598959,205.38,205.37,0.03]
[1756667711336,66.01713746,205.38,205.37,0.03]
[1756667711857,66.01713746,205.38,205.36,0.03]
[1756667712162,7.31972918,205.37,205.36,0.03]
[1756667712331,12.18898953,205.37,205.36,0.03]
[1756667712533,14.86178153,205.37,205.36,0.03]
[1756667713766,28.45737554,205.37,205.36,0.03]
[1756667715460,28.45737554,205.37,205.34,0.03]
[1756667715461,13.59559401,205.36,205.34,0.03]
[1756667715657,44.87972918,205.35,205.34,0.03]
[1756667715965,45.59972918,205.35,205.34,0.03]
[1756667716130,50.47200318,205.35,205.34,0.03]
[1756667716969,55.34173777,205.35,205.34,0.03]
[1756667719460,59.30027028,205.35,205.34,0.03]
[1756667721939,72.89586429,205.35,205.34,0.03]
[1756667722340,76.99471642,205.35,205.34,0.03]
[1756667722557,73.03618391,205.35,205.34,0.03]
[1756667722754,26.0,205.32,205.3,0.7]
[1756667722958,44.87972918,205.31,205.3,0.7]
[1756667723352,49.75276718,205.31,205.3,0.7]
[1756667723969,4.8709206,205.3,205.22,8.91343626]
[1756667724144,197.96,205.29,205.28,0.7]
[1756667724467,202.00064748,205.29,205.28,0.7]
[1756667725080,216.64872748,205.29,205.28,0.7]
[1756667726173,221.51988535,205.29,205.28,0.7]
[1756667727258,224.79686859,205.29,205.27,0.03]
[1756667727462,7.31763072,205.28,205.27,0.73]
[1756667727986,61.89304417,205.28,205.27,0.73]
[1756667728745,61.89304417,205.28,205.27,0.03]
[1756667730060,21.7439724,205.28,205.27,0.03]
[1756667730266,63.34994338,205.28,205.27,0.03]
[1756667734378,77.63553739,205.28,205.27,0.03]
[1756667734580,77.63553739,205.28,205.25,0.03]
[1756667734581,13.59559401,205.27,205.25,0.03]
[1756667734785,44.88295422,205.26,205.25,0.03]
[1756667734968,45.57295422,205.26,205.25,0.03]
[1756667735172,50.44717322,205.26,205.25,0.03]
[1756667735372,55.31904304,205.26,205.25,0.03]
[1756667735679,68.91463705,205.26,205.25,0.03]
[1756667735859,31.35463705,205.26,205.25,0.03]
[1756667736655,55.31904304,205.26,205.25,0.03]
[1756667737579,17.75904304,205.26,205.25,0.03]
[1756667737780,55.31904304,205.26,205.25,0.03]
[1756667743368,68.91463705,205.26,205.25,0.03]
[1756667743570,160.4,205.24,205.14,4.87471461]
[1756667743776,160.4,205.24,205.19,0.65]
[1756667743777,137.66680934,205.23,205.19,0.65]
[1756667743985,4.04597098,205.2,205.19,0.65]
[1756667744385,41.62597098,205.2,205.19,0.65]
[1756667744592,4.04597098,205.2,205.19,0.65]
[1756667744782,41.62597098,205.2,205.19,0.65]
[1756667745180,46.50036398,205.2,205.19,0.65]
[1756667745384,8.92036398,205.2,205.19,0.65]
[1756667745587,41.62597098,205.2,205.19,0.65]
[1756667745896,37.58,205.2,205.19,0.65]
[1756667749298,41.62597098,205.2,205.19,0.65]
[1756667749608,37.58,205.22,205.19,9.56938243]
[1756667749809,37.58,205.22,205.2,4.69597098]
[1756667749992,4.873967,205.26,205.21,0.65]
[1756667750300,41.62597098,205.25,205.21,0.65]
[1756667750511,41.62597098,205.25,205.22,4.87281941]
[1756667750677,4.04597098,205.24,205.23,0.65]
[1756667750877,4.04597098,205.24,205.2,4.87324948]
[1756667751397,4.04597098,205.24,205.22,4.04597098]
[1756667751398,37.58,205.24,205.22,4.04597098]
[1756667751703,37.58,205.24,205.23,0.65]
[1756667752501,37.58,205.24,205.23,5.52258198]
[1756667752901,4.04597098,205.27,205.23,5.52258198]
[1756667753078,2.54674945,205.42,205.26,4.04597098]
[1756667753079,0.75,205.34,205.26,4.04597098]
[1756667753275,37.58,205.31,205.29,4.04597098]
[1756667753473,37.58,205.31,205.3,0.65]
[1756667754110,37.58,205.31,205.27,4.04597098]